bitfinex/quotes_SOLUSD_20250719
["timestamp","ask_amount","ask_price","bid_price","bid_amount"]
[1752925887528,0.06,176.67,176.66,40.83]
[1752925888937,0.06,176.67,176.66,43.92812024]
[1752925895348,0.06,176.67,176.66,61.2788633]
[1752925897843,0.06,176.67,176.66,185.91698354]
[1752925898052,0.06,176.67,176.66,191.01151541]
[1752925898251,0.06,176.67,176.66,192.61991541]
[1752925898851,0.06,176.67,176.66,186.95932445]
[1752925899625,0.06,176.67,176.66,183.80120421]
[1752925904058,0.06,176.67,176.66,180.70308397]
[1752925904256,0.06,176.67,176.66,183.80120421]
[1752925905547,0.06,176.67,176.66,180.70308397]
[1752925905754,0.06,176.67,176.66,183.80120421]
[1752925907049,0.06,176.67,176.66,180.70308397]
[1752925907350,0.06,176.67,176.66,183.80120421]
[1752925907855,0.06,176.67,176.66,180.70308397]
[1752925908051,0.06,176.67,176.66,183.80120421]
[1752925908354,0.06,176.67,176.66,180.70308397]
[1752925908542,0.06,176.67,176.66,183.80120421]
[1752925910857,0.06,176.67,176.66,56.10120421]
[1752925911150,0.06,176.67,176.66,91.45468397]
[1752925911350,0.06,176.67,176.66,94.55280421]
[1752925914337,0.06,176.67,176.66,103.31151541]
[1752925914539,0.06,176.71,176.7,50.72468397]
[1752925914856,0.06,176.71,176.7,94.46873516]
[1752925915039,0.06,176.71,176.7,95.13873516]
[1752925920344,0.06,176.71,176.7,182.73873516]
[1752925920542,0.06,176.71,176.7,182.17280421]
[1752925923450,0.06,176.71,176.7,188.50530421]
[1752925923647,0.06,176.71,176.7,193.10788974]
[1752925923955,0.06,176.71,176.7,188.50530421]
[1752925925013,0.06,176.71,176.7,142.09280421]
[1752925925149,0.06,176.71,176.7,208.17280421]
[1752925926155,0.06,176.71,176.7,205.07468397]
[1752925926349,0.06,176.71,176.7,208.17280421]
[1752925928075,0.06,176.71,176.7,187.83211377]
[1752925928258,0.06,176.71,176.7,182.17280421]
[1752925928786,0.06,176.71,176.7,187.83211377]
[1752925929297,0.06,176.75,176.74,50.72468397]
[1752925929587,0.06,176.75,176.74,182.14860708]
[1752925929796,0.06,176.75,176.74,182.30280421]
[1752925934587,0.06,176.75,176.74,142.08280421]
[1752925934887,100.06,176.75,176.74,171.26468397]
[1752925935068,100.06,176.75,176.74,134.14280421]
[1752925935392,100.06,176.75,176.74,174.36280421]
[1752925936492,100.06,176.75,176.74,134.14280421]
[1752925936693,100.06,176.75,176.74,174.34280421]
[1752925937081,100.06,176.75,176.74,134.14280421]
[1752925937395,100.06,176.75,176.74,174.34280421]
[1752925940077,100.06,176.75,176.74,174.32280421]
[1752925940590,100.06,176.75,176.74,208.26280421]
[1752925945182,100.06,176.75,176.74,187.92083295]
[1752925946983,12.52,176.75,176.74,94.72280421]
[1752925947291,12.52,176.75,176.74,95.28860708]
[1752925948201,12.52,176.75,176.74,100.94663582]
[1752925950896,12.52,176.75,176.74,117.88663582]
[1752925951101,12.52,176.75,176.74,117.32083295]
[1752925952686,12.52,176.75,176.74,111.66280421]
[1752925953008,0.06,176.79,176.78,50.72468397]
[1752925953178,0.06,176.79,176.78,165.88468397]
[1752925953509,0.06,176.79,176.78,168.98280421]
[1752925959103,0.06,176.79,176.78,165.88468397]
[1752925961720,3.41812024,176.79,176.78,109.02]
[1752925961908,0.32,176.79,176.78,149.04]
[1752925962104,3.41812024,176.79,176.78,149.04]
[1752925962539,0.32,176.79,176.78,149.04]
[1752925962719,3.41812024,176.79,176.78,149.04]
[1752925963220,9.07454877,176.79,176.78,149.04]
[1752925963598,1.6166,176.78,176.72,33.94]
[1752925963802,0.26,176.77,176.73,40.02]
[1752925964002,3.09812024,176.74,176.73,40.02]
[1752925964318,3.35812024,176.74,176.72,73.96]
[1752925965703,0.26,176.76,176.72,73.96]
[1752925965902,8.75518874,176.77,176.73,16.78468397]
[1752925966213,9.01518874,176.77,176.74,40.0]
[1752925966413,3.09812024,176.75,176.74,40.0]
[1752925966922,3.35812024,176.75,176.74,40.0]
[1752925967721,9.01582886,176.75,176.74,40.0]
[1752925968024,8.75582886,176.75,176.74,40.0]
[1752925968230,5.65770862,176.75,176.74,40.0]
[1752925969925,3.09812024,176.76,176.74,40.0]
[1752925970126,8.75558995,176.76,176.74,40.0]
[1752925970516,8.75522097,176.77,176.74,40.7]
[1752925970708,3.15812024,176.79,176.75,0.7]
[1752925970907,3.15812024,176.79,176.76,60.60280421]
[1752925970908,0.06,176.79,176.76,60.60280421]
[1752925971229,0.06,176.79,176.78,19.88280421]
[1752925971705,0.06,176.79,176.78,20.58280421]
[1752925971906,0.06,176.79,176.78,21.14847906]
[1752925972924,0.06,176.79,176.78,17.35035882]
[1752925973511,0.06,176.79,176.78,18.05035882]
[1752925974825,0.06,176.79,176.78,21.14847906]
[1752925975527,0.06,176.79,176.78,17.35035882]
[1752925975929,0.06,176.79,176.78,18.04035882]
[1752925976514,0.06,176.79,176.78,21.13847906]
[1752925976718,0.06,176.79,176.78,96.21847906]
[1752925978017,0.06,176.79,176.78,92.43035882]
[1752925979548,0.06,176.79,176.78,93.12035882]
[1752925980648,0.06,176.79,176.78,92.43035882]
[1752925980815,3.41812024,176.79,176.78,75.08]
[1752925981019,3.41812024,176.79,176.74,39.98]
[1752925981231,3.09812024,176.75,176.73,39.98]
[1752925981439,3.09812024,176.74,176.73,56.76468397]
[1752925981845,0.26,176.75,176.73,56.76468397]
[1752925982048,3.09812024,176.74,176.73,56.76468397]
[1752925985093,8.75614898,176.74,176.73,39.98]
[1752925985828,9.01614898,176.74,176.73,39.98]
[1752925986229,9.01614898,176.74,176.72,39.96]
[1752925986435,3.09812024,176.73,176.72,39.96]
[1752925990057,5.71777047,176.75,176.72,40.65]
[1752925990265,3.09812024,176.74,176.72,40.65]
[1752925990831,3.09812024,176.73,176.72,39.96]
[1752925991435,9.01646913,176.73,176.72,39.96]
[1752925992063,9.01646913,176.73,176.71,0.03]
[1752925992251,3.09812024,176.72,176.71,56.71468397]
[1752925992446,8.75646913,176.73,176.71,56.71468397]
[1752925992665,3.09812024,176.73,176.71,56.71468397]
[1752925992855,3.09812024,176.73,176.71,57.40468397]
[1752925993665,3.09812024,176.73,176.72,0.69]
[1752925994265,3.09812024,176.74,176.72,0.69]
[1752925994462,3.09812024,176.74,176.73,39.9]
[1752925994671,8.75614898,176.74,176.73,39.9]
[1752925995958,9.01614898,176.74,176.72,39.92]
[1752925996168,3.09812024,176.73,176.72,39.92]
[1752925997176,3.09812024,176.73,176.71,16.81468397]
[1752925997480,3.09812024,176.73,176.72,39.92]
[1752925998583,3.09812024,176.73,176.72,40.61]
[1752925999769,3.09812024,176.73,176.72,39.92]
[1752926000283,3.09812024,176.73,176.72,115.0]
[1752926000472,0.06,176.75,176.73,16.78468397]
[1752926000659,0.06,176.75,176.74,39.92]
[1752926000853,0.06,176.75,176.74,40.61]
[1752926001862,3.15812024,176.75,176.74,39.92]
[1752926002059,3.41812024,176.75,176.72,75.08]
[1752926002260,3.09812024,176.73,176.71,39.95]
[1752926002557,3.09812024,176.72,176.71,39.95]
[1752926003088,3.09812024,176.73,176.71,40.64]
[1752926003383,3.09812024,176.72,176.71,40.64]
[1752926003765,3.09812024,176.72,176.71,39.95]
[1752926005054,3.09812024,176.72,176.71,40.64]
[1752926005258,3.09812024,176.72,176.71,39.95]
[1752926006085,3.09812024,176.72,176.71,40.65]
[1752926006263,3.09812024,176.72,176.71,115.73]
[1752926011168,3.09812024,176.74,176.72,16.78468397]
[1752926011466,3.15812024,176.75,176.73,40.62]
[1752926011882,0.06,176.75,176.73,39.92]
[1752926012191,0.06,176.75,176.74,0.7]
[1752926014383,3.15812024,176.75,176.74,0.7]
[1752926014586,3.15812024,176.75,176.73,115.0]
[1752926014768,3.09812024,176.74,176.73,115.0]
[1752926015386,3.35812024,176.74,176.73,75.08]
[1752926016789,9.01614898,176.74,176.73,75.08]
[1752926018207,9.01614898,176.74,176.71,0.03]
[1752926018386,3.09812024,176.72,176.71,0.03]
[1752926018910,8.75678932,176.72,176.71,0.03]
[1752926019085,9.01678932,176.72,176.71,0.03]
[1752926019286,8.75678932,176.72,176.71,0.03]
[1752926021773,9.01678932,176.72,176.71,0.03]
[1752926022793,8.75678932,176.72,176.71,0.03]
[1752926023104,9.01678932,176.72,176.71,0.03]
[1752926024494,8.75678932,176.72,176.71,0.03]
[1752926028285,9.01678932,176.72,176.71,0.03]
[1752926029414,8.75678932,176.72,176.71,0.03]
[1752926032907,9.01678932,176.72,176.71,0.03]
[1752926033799,9.01678932,176.72,176.68,108.07]
[1752926033995,9.01678932,176.72,176.68,108.77]
[1752926033996,3.09812024,176.69,176.68,108.77]
[1752926034893,8.7577501,176.69,176.68,32.99]
[1752926035508,8.7577501,176.69,176.67,0.03]
[1752926035813,8.7577501,176.69,176.67,40.63]
[1752926035814,3.09812024,176.68,176.67,40.63]
[1752926039022,8.75807043,176.68,176.67,40.63]
[1752926039209,8.75807043,176.68,176.67,39.93]
[1752926040297,8.75807043,176.68,176.67,0.03]
[1752926041287,3.09812024,176.68,176.67,0.03]
[1752926042092,26.0,176.74,176.67,40.65]
[1752926042294,26.0,176.74,176.68,0.72]
[1752926042295,19.80374828,176.74,176.68,0.72]
[1752926042629,8.75614898,176.74,176.69,42.99812024]
[1752926043000,3.09812024,176.73,176.7,0.72]
[1752926043199,5.65866908,176.72,176.71,39.9]
[1752926043423,8.75678932,176.72,176.7,39.9]
[1752926043620,3.09812024,176.71,176.7,39.9]
[1752926044028,3.09812024,176.71,176.68,40.62]
[1752926044230,3.09812024,176.71,176.69,0.72]
[1752926044820,5.65866908,176.72,176.68,39.9]
[1752926044821,8.7574298,176.7,176.68,39.9]
[1752926045149,3.09812024,176.69,176.68,39.9]
[1752926046118,3.09812024,176.69,176.68,40.62]
[1752926048014,8.7577501,176.69,176.68,40.62]
[1752926048520,8.7577501,176.69,176.68,39.9]
[1752926049521,8.7577501,176.69,176.68,40.62]
[1752926049733,8.7577501,176.69,176.68,39.9]
[1752926049906,8.7577501,176.69,176.67,75.83]
[1752926049907,8.7577501,176.69,176.67,75.11]
[1752926050106,3.09812024,176.68,176.67,0.03]
[1752926050835,8.75807043,176.68,176.67,0.03]
[1752926054129,8.81807043,176.68,176.67,0.03]
[1752926057815,3.15812024,176.68,176.67,0.75]
[1752926060115,3.15812024,176.68,176.67,40.65]
[1752926060622,8.81807043,176.68,176.67,40.65]
[1752926060825,8.81807043,176.68,176.67,39.93]
[1752926062238,8.81807043,176.68,176.67,0.03]
[1752926073250,0.06,176.68,176.67,0.03]
[1752926073547,0.06,176.68,176.67,60.46280421]
[1752926073748,5.71889536,176.72,176.68,16.78468397]
[1752926073956,8.8170156,176.72,176.69,40.55]
[1752926074132,3.09812024,176.71,176.69,40.55]
[1752926074335,3.09812024,176.71,176.7,0.67]
[1752926075027,3.41812024,176.71,176.68,39.88]
[1752926075244,8.7577501,176.69,176.68,39.88]
[1752926079150,3.09812024,176.69,176.68,39.88]
[1752926079351,3.09812024,176.69,176.67,0.7]
[1752926079656,3.09812024,176.68,176.67,0.7]
[1752926080247,5.65930956,176.7,176.67,0.7]
[1752926080555,3.09812024,176.69,176.67,0.7]
[1752926081148,8.75794426,176.69,176.67,0.7]
[1752926081663,5.65982402,176.69,176.67,0.7]
[1752926082768,8.75794426,176.69,176.67,0.7]
[1752926082945,3.09812024,176.68,176.67,0.7]
[1752926083958,3.09812024,176.69,176.67,0.7]
[1752926084262,3.09812024,176.68,176.67,0.7]
[1752926085172,8.75807043,176.68,176.67,0.7]
[1752926087671,3.09812024,176.68,176.67,0.7]
[1752926090070,8.75807043,176.68,176.67,0.7]
[1752926092882,8.75807043,176.68,176.67,0.03]
[1752926093054,7.65241981,176.68,176.67,0.03]
[1752926094575,7.65241981,176.68,176.67,0.7]
[1752926097977,7.71241981,176.68,176.67,0.7]
[1752926100965,5.71995019,176.68,176.67,0.7]
[1752926101479,0.06,176.68,176.67,59.31715359]
[1752926101859,0.06,176.68,176.67,57.32468397]
[1752926103076,0.06,176.68,176.67,40.54]
[1752926103460,0.06,176.68,176.67,39.87]
[1752926103864,2.05246962,176.68,176.67,39.87]
[1752926104067,2.05246962,176.68,176.67,0.03]
[1752926104371,8.03241981,176.68,176.67,0.03]
[1752926104980,12.26967855,176.68,176.67,1e-08]
[1752926105757,26.41955403,176.68,176.64,0.03]
[1752926105958,3.11486418,176.65,176.64,0.03]
[1752926106386,3.11486418,176.65,176.58,1.5311]
[1752926106387,26.0,176.63,176.5,8.0235]
[1752926106560,3.11486418,176.55,176.53,0.71]
[1752926106901,3.11486418,176.55,176.54,0.71]
[1752926107058,3.11486418,176.55,176.51,40.55]
[1752926107258,3.11486418,176.53,176.52,0.71]
[1752926107977,3.11486418,176.54,176.52,0.71]
[1752926108286,3.11486418,176.54,176.53,0.71]
[1752926108287,8.77930283,176.54,176.53,0.71]
[1752926109980,3.11486418,176.58,176.53,0.71]
[1752926110194,3.11486418,176.58,176.54,39.84]
[1752926110487,8.77808928,176.58,176.55,17.49468397]
[1752926110682,3.11486418,176.57,176.56,0.71]
[1752926110859,5.6632251,176.58,176.56,0.71]
[1752926111063,8.77808928,176.58,176.56,0.71]
[1752926111261,8.77773688,176.59,176.56,0.71]
[1752926111462,5.6628727,176.59,176.56,0.71]
[1752926111771,8.77773688,176.59,176.56,0.71]
[1752926112162,3.11486418,176.58,176.57,0.71]
[1752926112358,8.77822951,176.58,176.56,0.71]
[1752926113774,3.11486418,176.57,176.55,39.84]
[1752926113973,3.11486418,176.56,176.55,39.84]
[1752926114171,3.11486418,176.56,176.53,39.84]
[1752926114370,3.11486418,176.54,176.53,39.84]
[1752926114981,3.11486418,176.54,176.5,24.80818397]
[1752926114982,3.11486418,176.54,176.5,83.1035]
[1752926115289,5.66336533,176.58,176.51,60.44954815]
[1752926115460,3.11486418,176.56,176.51,134.81954815]
[1752926115661,8.77867222,176.56,176.53,16.78468397]
[1752926115888,8.77867222,176.56,176.52,0.71]
[1752926115889,3.11486418,176.56,176.54,0.71]
[1752926116099,8.77866118,176.56,176.55,0.71]
[1752926116883,5.663797,176.56,176.55,0.71]
[1752926117091,8.77866118,176.56,176.55,0.71]
[1752926117775,3.11486418,176.61,176.56,16.78468397]
[1752926117998,5.66187294,176.62,176.58,19.89954815]
[1752926118189,5.66059096,176.66,176.59,39.84]
[1752926118390,8.77545514,176.66,176.61,3.11486418]
[1752926118594,8.77545514,176.66,176.62,39.84]
[1752926118910,8.77545514,176.66,176.63,0.71]
[1752926119701,5.66059096,176.66,176.62,39.84]
[1752926119880,5.66059096,176.66,176.64,0.71]
[1752926120084,8.77545514,176.66,176.64,0.71]
[1752926120817,5.66059096,176.66,176.64,0.71]
[1752926120977,8.77545514,176.66,176.64,0.71]
[1752926121396,3.11486418,176.65,176.62,39.84]
[1752926121578,3.11486418,176.64,176.62,57.33468397]
[1752926121776,5.66155239,176.63,176.62,40.55]
[1752926122502,5.66155239,176.63,176.62,0.71]
[1752926122692,5.66155239,176.63,176.61,39.84]
[1752926122892,5.66155239,176.63,176.61,40.55]
[1752926123377,8.77641657,176.63,176.61,39.84]
[1752926123792,3.11486418,176.64,176.61,40.55]
[1752926124916,5.66155239,176.63,176.61,40.55]
[1752926125410,5.66155239,176.63,176.62,0.71]
[1752926125604,8.77577558,176.65,176.62,0.71]
[1752926125927,3.11486418,176.63,176.59,75.08]
[1752926126125,3.11486418,176.6,176.58,40.51]
[1752926126787,5.66283481,176.59,176.58,57.29468397]
[1752926127919,8.77746674,176.6,176.58,57.29468397]
[1752926128420,8.77746674,176.6,176.59,0.67]
[1752926130316,5.6622851,176.61,176.59,0.67]
[1752926130519,5.6609114,176.65,176.59,0.67]
[1752926130812,5.6609114,176.65,176.62,16.78468397]
[1752926131005,5.6609114,176.65,176.63,0.67]
[1752926131211,3.11486418,176.64,176.63,0.67]
[1752926131410,8.77577558,176.65,176.63,0.67]
[1752926131802,3.11486418,176.64,176.61,16.78468397]
[1752926131992,3.11486418,176.63,176.61,16.78468397]
[1752926132222,3.11486418,176.62,176.6,40.49]
[1752926132419,8.77690371,176.62,176.6,40.49]
[1752926132606,3.11486418,176.61,176.6,40.49]
[1752926132912,3.11486418,176.61,176.6,0.67]
[1752926135126,8.77705771,176.61,176.6,0.67]
[1752926135797,8.77684268,176.62,176.6,0.67]
[1752926137027,5.6619785,176.62,176.61,0.67]
[1752926137213,3.11486418,176.62,176.61,0.67]
[1752926137525,14.15248039,176.65,176.61,0.67]
[1752926137526,5.66059096,176.66,176.61,0.67]
[1752926137734,3.11486418,176.65,176.61,0.67]
[1752926137923,8.77545514,176.66,176.62,16.78468397]
[1752926138126,8.77545514,176.66,176.63,0.67]
[1752926138427,3.11486418,176.65,176.63,0.67]
[1752926139331,5.66096326,176.65,176.64,0.67]
[1752926139907,8.77582744,176.65,176.59,3.11486418]
[1752926140112,3.11486418,176.64,176.6,57.27468397]
[1752926140422,3.11486418,176.62,176.6,39.82]
[1752926140605,3.11486418,176.61,176.59,0.67]
[1752926140806,3.11486418,176.6,176.59,0.67]
[1752926141717,5.66283481,176.59,176.58,56.60468397]
[1752926141924,8.77769899,176.59,176.57,16.78468397]
[1752926142637,3.11486418,176.58,176.57,16.78468397]
[1752926143136,8.77801969,176.58,176.57,16.78468397]
[1752926144127,8.77801969,176.58,176.56,40.49]
[1752926144334,3.11486418,176.57,176.55,16.81468397]
[1752926144641,3.11486418,176.56,176.55,16.81468397]
[1752926144848,3.11486418,176.56,176.55,0.03]
[1752926145013,5.66315551,176.58,176.55,0.03]
[1752926145214,5.66315551,176.58,176.55,16.81468397]
[1752926145438,3.11486418,176.57,176.55,17.48468397]
[1752926145811,3.11486418,176.56,176.55,17.48468397]
[1752926146538,5.66251415,176.6,176.55,17.48468397]
[1752926146740,5.66251415,176.6,176.53,0.03]
[1752926146741,26.0,176.55,176.53,0.03]
[1752926146948,26.0,176.51,176.46,30.0]
[1752926147146,3.11486418,176.47,176.4,0.67]
[1752926147313,3.11486418,176.42,176.4,40.49]
[1752926147712,0.32,176.47,176.4,40.49]
[1752926148018,0.32,176.47,176.41,46.78468397]
[1752926148244,0.32,176.47,176.41,30.67]
[1752926148449,3.11486418,176.43,176.41,30.67]
[1752926149113,3.11486418,176.43,176.41,30.0]
[1752926149309,3.11486418,176.42,176.36,40.49]
[1752926149506,3.11486418,176.39,176.37,30.67]
[1752926149709,3.11486418,176.39,176.38,17.45468397]
[1752926150518,5.6681011,176.43,176.38,17.45468397]
[1752926150714,3.11486418,176.4,176.38,17.45468397]
[1752926152422,5.66797029,176.43,176.38,17.45468397]
[1752926152755,3.11486418,176.44,176.4,16.78468397]
[1752926152915,3.11486418,176.44,176.41,0.67]
[1752926153235,26.0,176.46,176.41,0.67]
[1752926153236,3.11486418,176.43,176.41,0.67]
[1752926153433,3.11486418,176.42,176.4,16.78468397]
[1752926153618,3.11486418,176.41,176.38,30.67]
[1752926153815,3.11486418,176.4,176.39,39.82]
[1752926154552,0.32,176.43,176.39,39.82]
[1752926154752,3.11486418,176.4,176.39,39.82]
[1752926154953,3.11486418,176.4,176.37,0.67]
[1752926155146,3.11486418,176.4,176.38,17.45468397]
[1752926156153,3.11486418,176.4,176.39,0.72]
[1752926156528,3.11486418,176.4,176.38,16.78468397]
[1752926156753,8.78385773,176.4,176.38,16.78468397]
[1752926156961,3.11486418,176.4,176.38,17.50468397]
[1752926157348,5.66857162,176.42,176.38,17.50468397]
[1752926157556,3.11486418,176.4,176.38,17.50468397]
[1752926157861,0.32,176.4,176.35,16.78468397]
[1752926158060,5.66857162,176.42,176.36,87.34468397]
[1752926158061,3.11486418,176.37,176.36,87.34468397]
[1752926158371,3.11486418,176.38,176.36,87.34468397]
[1752926158661,3.11486418,176.38,176.36,86.62468397]
[1752926159234,3.11486418,176.38,176.36,70.56]
[1752926159855,8.78452406,176.38,176.36,40.56]
[1752926160289,5.66932641,176.39,176.36,40.56]
[1752926160439,3.11486418,176.38,176.36,40.56]
[1752926160949,8.7846866,176.38,176.36,39.84]
[1752926161373,3.11486418,176.37,176.34,0.72]
[1752926161575,3.11486418,176.36,176.34,40.56]
[1752926162186,5.66829157,176.42,176.35,17.50468397]
[1752926162396,26.0,176.43,176.34,39.84]
[1752926162397,3.11486418,176.43,176.38,3.11486418]
[1752926162561,3.11486418,176.43,176.39,41.24]
[1752926162902,3.11486418,176.45,176.4,20.61954815]
[1752926163179,3.11486418,176.44,176.41,41.26]
[1752926163687,3.11486418,176.45,176.42,0.72]
[1752926163887,8.78154973,176.47,176.43,41.24]
[1752926164064,3.11486418,176.47,176.44,0.72]
[1752926164382,3.11486418,176.47,176.45,0.72]
[1752926165268,3.11486418,176.47,176.46,0.72]
[1752926165574,8.78154973,176.47,176.44,0.72]
[1752926165876,3.11486418,176.47,176.45,0.72]
[1752926166080,8.781619,176.47,176.45,0.72]
[1752926166255,3.11486418,176.46,176.43,41.24]
[1752926166452,3.11486418,176.45,176.43,41.24]
[1752926167074,3.11486418,176.46,176.44,0.72]
[1752926167575,8.781619,176.47,176.45,0.72]
[1752926168183,3.11486418,176.47,176.45,0.72]
[1752926168780,3.11486418,176.47,176.46,0.72]
[1752926168961,3.11486418,176.48,176.46,0.72]
[1752926169158,3.11486418,176.49,176.47,0.72]
[1752926169361,14.16002845,176.56,176.48,16.78468397]
[1752926169688,3.11486418,176.56,176.52,16.78468397]
[1752926169886,3.11486418,176.56,176.53,0.72]
[1752926170053,3.11486418,176.54,176.52,40.5]
[1752926170257,3.11486418,176.54,176.52,16.78468397]
[1752926170488,3.11486418,176.54,176.52,57.28468397]
[1752926171157,3.11486418,176.53,176.48,0.72]
[1752926171488,45.82216684,176.57,176.49,57.28468397]
[1752926171658,5.66283481,176.59,176.54,16.78468397]
[1752926171864,5.66283481,176.59,176.55,0.72]
[1752926171865,3.11486418,176.58,176.55,0.72]
[1752926172657,8.77832339,176.58,176.55,0.72]
[1752926172854,3.11486418,176.57,176.55,0.72]
[1752926173380,5.72279439,176.6,176.56,0.72]
[1752926173678,5.72279439,176.6,176.59,3.11486418]
[1752926173679,0.06,176.6,176.59,3.11486418]
[1752926173890,0.06,176.6,176.59,61.09954815]
[1752926175396,0.06,176.65,176.63,42.78468397]
[1752926175573,0.06,176.68,176.65,16.78468397]
[1752926175769,0.06,176.68,176.67,19.89954815]
[1752926175960,0.06,176.68,176.67,60.35954815]
[1752926176163,0.06,176.68,176.67,61.07954815]
[1752926177074,0.06,176.68,176.67,63.03415063]
[1752926177282,0.06,176.7,176.67,63.03415063]
[1752926177283,0.06,176.7,176.68,50.74468397]
[1752926177491,0.06,176.72,176.71,42.78468397]
[1752926177667,0.06,176.72,176.71,88.33415063]
[1752926177868,0.06,176.72,176.71,89.62004956]
[1752926178170,0.06,176.72,176.71,83.96468397]
[1752926179869,5.12946666,176.72,176.71,57.22468397]
[1752926180063,5.12946666,176.72,176.68,0.72]
[1752926180270,5.06946666,176.71,176.7,16.78468397]
[1752926180685,5.06946666,176.71,176.66,16.78468397]
[1752926180889,5.06946666,176.7,176.68,16.78468397]
[1752926181063,5.06946666,176.7,176.69,40.42]
[1752926181481,5.71866908,176.72,176.69,40.42]
[1752926181684,5.06946666,176.71,176.69,40.42]
[1752926181865,5.71866908,176.72,176.7,17.50468397]
[1752926182186,5.71866908,176.72,176.71,40.42]
[1752926182400,10.78813574,176.72,176.71,40.42]
[1752926182763,10.78813574,176.72,176.7,16.78468397]
[1752926182963,5.71866908,176.72,176.65,33.96]
[1752926183168,5.06946666,176.69,176.67,16.78468397]
[1752926183374,5.06946666,176.69,176.68,57.20468397]
[1752926183561,5.06946666,176.7,176.68,57.20468397]
[1752926183775,5.06946666,176.7,176.68,57.92468397]
[1752926184277,5.06946666,176.7,176.68,57.20468397]
[1752926185292,5.65962986,176.69,176.68,57.20468397]
[1752926185894,5.65935853,176.7,176.68,57.86468397]
[1752926186113,5.6590063,176.71,176.69,17.44468397]
[1752926186393,5.6590063,176.71,176.7,57.84468397]
[1752926187320,0.06,176.72,176.71,16.78468397]
[1752926187465,0.06,176.72,176.71,17.44468397]
[1752926188570,0.06,176.72,176.71,16.78468397]
[1752926188771,0.06,176.72,176.71,22.51415063]
[1752926189372,0.06,176.72,176.71,110.68004956]
[1752926191271,0.06,176.72,176.71,144.64004956]
[1752926191477,0.06,176.72,176.71,170.07415063]
[1752926192582,0.06,176.72,176.71,176.64495063]
[1752926193276,0.06,176.72,176.71,89.04495063]
[1752926193475,0.06,176.72,176.71,177.21084956]
[1752926193680,0.06,176.72,176.71,176.64495063]
[1752926194095,0.06,176.73,176.71,156.30393993]
[1752926194400,0.06,176.73,176.72,97.40001753]
[1752926195277,0.06,176.73,176.72,185.00001753]
[1752926195478,0.06,176.73,176.72,184.43415063]
[1752926195871,0.06,176.73,176.72,144.07415063]
[1752926196076,0.06,176.73,176.72,184.43415063]
[1752926198579,0.06,176.73,176.72,105.04468397]
[1752926198797,0.06,176.73,176.72,150.45415063]
[1752926200390,0.06,176.73,176.72,184.41415063]
[1752926201176,0.06,176.73,176.72,139.00468397]
[1752926201376,0.06,176.73,176.72,91.04468397]
[1752926201582,0.06,176.73,176.72,96.77415063]
[1752926204712,0.06,176.73,176.72,56.47415063]
[1752926205005,0.06,176.73,176.72,96.77415063]
[1752926205204,5.12946666,176.73,176.72,16.78468397]
[1752926205500,5.74946666,176.73,176.72,16.78468397]
[1752926206187,5.12946666,176.73,176.72,16.78468397]
[1752926206584,10.78781555,176.73,176.72,16.78468397]
[1752926206785,10.78781555,176.73,176.72,57.14468397]
[1752926207093,10.78781555,176.73,176.72,16.78468397]
[1752926207497,5.71834889,176.73,176.72,16.78468397]
[1752926208514,0.06,176.73,176.72,16.78468397]
[1752926209286,5.12946666,176.73,176.72,16.78468397]
[1752926209492,7.7131,176.72,176.57,22.05079277]
[1752926209694,5.06946666,176.64,176.59,0.69]
[1752926209896,5.06946666,176.64,176.6,40.36]
[1752926210385,5.06946666,176.64,176.61,16.78468397]
[1752926210906,11.35069854,176.64,176.61,16.78468397]
[1752926211100,10.73069854,176.64,176.61,16.78468397]
[1752926211308,10.73069854,176.64,176.61,57.14468397]